bitfinex-derivatives/quotes_BTCF0:USTF0_20250928
["timestamp","ask_amount","ask_price","bid_price","bid_amount"]
[1759041144195,2.4177448,109360.0,109350.0,0.4864847]
[1759041144404,2.4177448,109360.0,109350.0,0.39508]
[1759041149800,1.52287534,109360.0,109350.0,0.39508]
[1759041150001,2.4177448,109360.0,109350.0,0.39508]
[1759041154710,2.4167048,109360.0,109350.0,0.39508]
[1759041155014,2.44958168,109360.0,109350.0,0.39508]
[1759041155903,2.4285141,109360.0,109350.0,0.39508]
[1759041160020,2.14103183,109360.0,109350.0,0.39508]
[1759041160317,2.4285141,109360.0,109350.0,0.39508]
[1759041161212,2.42852073,109360.0,109350.0,0.39508]
[1759041165519,1.53365127,109360.0,109350.0,0.39508]
[1759041165721,2.42852073,109360.0,109350.0,0.39508]
[1759041168222,1.53365127,109360.0,109350.0,0.39508]
[1759041168516,2.32871635,109360.0,109350.0,0.39508]
[1759041170025,1.53365127,109360.0,109350.0,0.39508]
[1759041170223,2.32871635,109360.0,109350.0,0.39508]
[1759041172527,1.53365127,109360.0,109350.0,0.39508]
[1759041172724,2.32871635,109360.0,109350.0,0.39508]
[1759041173323,2.55731635,109360.0,109350.0,0.39508]
[1759041180328,2.32871635,109360.0,109350.0,0.03428]
[1759041180528,2.55731635,109360.0,109350.0,0.39508]
[1759041181928,1.72295635,109360.0,109350.0,0.39508]
[1759041182132,2.55643635,109360.0,109350.0,0.39508]
[1759041182829,1.72295635,109360.0,109350.0,0.39508]
[1759041183031,2.55643635,109360.0,109350.0,0.39508]
[1759041184131,1.53277127,109360.0,109350.0,0.39508]
[1759041184327,2.55643635,109360.0,109350.0,0.39508]
[1759041185228,0.92789127,109360.0,109350.0,0.39508]
[1759041185429,2.55631635,109360.0,109350.0,0.39508]
[1759041186935,1.72295635,109360.0,109350.0,0.39508]
[1759041187136,2.55623635,109360.0,109350.0,0.39508]
[1759041187735,1.72295635,109360.0,109350.0,0.39508]
[1759041187935,2.55623635,109360.0,109350.0,0.39508]
[1759041188232,1.72295635,109360.0,109350.0,0.39508]
[1759041188536,2.55619635,109360.0,109350.0,0.39508]
[1759041189938,2.26871408,109360.0,109350.0,0.39508]
[1759041190138,2.55619635,109360.0,109350.0,0.39508]
[1759041192241,2.32759635,109360.0,109350.0,0.39508]
[1759041192429,2.55619635,109360.0,109350.0,0.39508]
[1759041192834,2.55623635,109360.0,109350.0,0.39508]
[1759041193537,2.15870381,109360.0,109350.0,0.39508]
[1759041193745,2.55623635,109360.0,109350.0,0.39508]
[1759041196844,1.72295635,109360.0,109350.0,0.39508]
[1759041197046,2.55607635,109360.0,109350.0,0.39508]
[1759041200646,1.76101127,109360.0,109350.0,0.39508]
[1759041200847,2.55607635,109360.0,109350.0,0.39508]
[1759041201851,1.76101127,109360.0,109350.0,0.39508]
[1759041202039,2.55607635,109360.0,109350.0,0.39508]
[1759041202241,2.32747635,109360.0,109350.0,0.39508]
[1759041202444,2.55607635,109360.0,109350.0,0.39508]
[1759041205754,1.76101127,109360.0,109350.0,0.39508]
[1759041205954,2.55607635,109360.0,109350.0,0.39508]
[1759041207255,2.32747635,109360.0,109350.0,0.39508]
[1759041209258,2.55607635,109360.0,109350.0,0.39508]
[1759041211149,1.76101127,109360.0,109350.0,0.39508]
[1759041211349,2.55607635,109360.0,109350.0,0.39508]
[1759041213557,1.76101127,109360.0,109350.0,0.39508]
[1759041213758,2.55607635,109360.0,109350.0,0.39508]
[1759041216361,2.32747635,109360.0,109350.0,0.39508]
[1759041216656,2.55607635,109360.0,109350.0,0.39508]
[1759041220460,2.32747635,109360.0,109350.0,0.39508]
[1759041220761,2.55607635,109360.0,109350.0,0.39508]
[1759041225269,2.32747635,109360.0,109350.0,0.39508]
[1759041227266,2.55607635,109360.0,109350.0,0.39508]
[1759041228570,2.32747635,109360.0,109350.0,0.39508]
[1759041228768,2.55607635,109360.0,109350.0,0.39508]
[1759041230662,2.65546631,109360.0,109350.0,0.39508]
[1759041232459,2.42686631,109360.0,109350.0,0.39508]
[1759041232663,2.65546631,109360.0,109350.0,0.39508]
[1759041233573,1.76101127,109360.0,109350.0,0.39508]
[1759041233775,2.65546631,109360.0,109350.0,0.39508]
[1759041237576,2.65546631,109360.0,109350.0,0.03428]
[1759041237876,2.65546631,109360.0,109350.0,0.39508]
[1759041241277,2.42686631,109360.0,109350.0,0.39508]
[1759041242282,2.65546631,109360.0,109350.0,0.39508]
[1759041245284,2.62258943,109360.0,109350.0,0.39508]
[1759041248786,1.78946943,109360.0,109350.0,0.39508]
[1759041249090,2.62142943,109360.0,109350.0,0.39508]
[1759041249890,2.33394716,109360.0,109350.0,0.39508]
[1759041250085,2.62142943,109360.0,109350.0,0.39508]
[1759041250587,1.78946943,109360.0,109350.0,0.39508]
[1759041250787,2.62138943,109360.0,109350.0,0.39508]
[1759041251087,1.78946943,109360.0,109350.0,0.39508]
[1759041251481,2.62146943,109360.0,109350.0,0.39508]
[1759041254188,2.65434631,109360.0,109350.0,0.39508]
[1759041257599,1.82234631,109360.0,109350.0,0.39508]
[1759041257799,2.65430631,109360.0,109350.0,0.39508]
[1759041258098,1.82234631,109360.0,109350.0,0.4864847]
[1759041258298,2.65426631,109360.0,109350.0,0.4864847]
[1759041265712,2.65426631,109360.0,109350.0,0.1256847]
[1759041265912,2.65426631,109360.0,109350.0,0.4864847]
[1759041266712,1.82234631,109360.0,109350.0,0.4864847]
[1759041267012,2.65410631,109360.0,109350.0,0.4864847]
[1759041267813,1.75965127,109360.0,109350.0,0.4864847]
[1759041268113,2.65410631,109360.0,109350.0,0.4864847]
[1759041268917,1.75965127,109360.0,109350.0,0.4864847]
[1759041269214,2.65410631,109360.0,109350.0,0.4864847]
[1759041273219,2.65110631,109360.0,109350.0,0.4864847]
[1759041274018,2.65410631,109360.0,109350.0,0.39508]
[1759041280021,2.36662404,109360.0,109350.0,0.39508]
[1759041280221,2.65410631,109360.0,109350.0,0.39508]
[1759041283023,2.42550631,109360.0,109350.0,0.39508]
[1759041283222,2.65410631,109360.0,109350.0,0.39508]
[1759041284321,2.42550631,109360.0,109350.0,0.39508]
[1759041284523,2.65410631,109360.0,109350.0,0.39508]
[1759041286926,1.75965127,109360.0,109350.0,0.39508]
[1759041287127,2.65410631,109360.0,109350.0,0.39508]
[1759041288630,2.42550631,109360.0,109350.0,0.39508]
[1759041288825,2.65410631,109360.0,109350.0,0.39508]
[1759041290025,2.65410631,109360.0,109350.0,0.03428]
[1759041290230,2.65410631,109360.0,109350.0,0.39508]
[1759041292531,2.32613243,109360.0,109350.0,0.39508]
[1759041292733,2.55473243,109360.0,109350.0,0.39508]
[1759041298636,2.32613243,109360.0,109350.0,0.39508]
[1759041298934,2.55473243,109360.0,109350.0,0.39508]
[1759041302241,2.32613243,109360.0,109350.0,0.39508]
[1759041304340,1.49437243,109360.0,109350.0,0.39508]
[1759041304541,2.32569243,109360.0,109350.0,0.39508]
[1759041304934,1.49437243,109360.0,109350.0,0.39508]
[1759041305133,2.32569243,109360.0,109350.0,0.39508]
[1759041305543,1.49437243,109360.0,109350.0,0.39508]
[1759041305735,2.32569243,109360.0,109350.0,0.39508]
[1759041306241,1.49437243,109360.0,109350.0,0.39508]
[1759041306548,2.32569243,109360.0,109350.0,0.39508]
[1759041307242,2.55429243,109360.0,109350.0,0.39508]
[1759041308842,2.32569243,109360.0,109350.0,0.39508]
[1759041309045,2.55429243,109360.0,109350.0,0.39508]
[1759041309945,2.26681016,109360.0,109350.0,0.39508]
[1759041310131,2.55429243,109360.0,109350.0,0.39508]
[1759041312145,1.72297243,109360.0,109350.0,0.39508]
[1759041312441,2.55429243,109360.0,109350.0,0.39508]
[1759041313544,2.55429243,109360.0,109350.0,0.03428]
[1759041313744,2.55429243,109360.0,109350.0,0.39508]
[1759041313946,1.72297243,109360.0,109350.0,0.39508]
[1759041314245,2.55429243,109360.0,109350.0,0.39508]
[1759041317246,1.72297243,109360.0,109350.0,0.39508]
[1759041317447,2.55425243,109360.0,109350.0,0.39508]
[1759041319047,2.55425243,109360.0,109350.0,0.03428]
[1759041319247,2.55425243,109360.0,109350.0,0.39508]
[1759041322244,2.32565243,109360.0,109350.0,0.39508]
[1759041322451,2.55425243,109360.0,109350.0,0.39508]
[1759041324951,2.32565243,109360.0,109350.0,0.03428]
[1759041325249,2.55425243,109360.0,109350.0,0.39508]
[1759041327438,1.75917127,109360.0,109350.0,0.39508]
[1759041327638,2.55425243,109360.0,109350.0,0.39508]
[1759041330251,2.32565243,109360.0,109350.0,0.39508]
[1759041331352,2.55425243,109360.0,109350.0,0.39508]
[1759041334148,2.52137555,109360.0,109350.0,0.39508]
[1759041336962,2.29277555,109360.0,109350.0,0.39508]
[1759041337164,2.52137555,109360.0,109350.0,0.39508]
[1759041339968,2.23389328,109360.0,109350.0,0.39508]
[1759041340158,2.52137555,109360.0,109350.0,0.39508]
[1759041344273,2.29277555,109360.0,109350.0,0.39508]
[1759041345272,2.52137555,109360.0,109350.0,0.39508]
[1759041345462,1.72629439,109360.0,109350.0,0.39508]
[1759041345663,2.52137555,109360.0,109350.0,0.39508]
[1759041346971,2.29277555,109360.0,109350.0,0.39508]
[1759041347171,2.52137555,109360.0,109350.0,0.39508]
[1759041347571,2.55425243,109360.0,109350.0,0.39508]
[1759041352573,2.65361953,109360.0,109350.0,0.39508]
[1759041355980,2.42501953,109360.0,109350.0,0.39508]
[1759041356181,2.65361953,109360.0,109350.0,0.39508]
[1759041357676,2.65361953,109360.0,109350.0,0.03428]
[1759041357881,2.65361953,109360.0,109350.0,0.39508]
[1759041358984,2.42501953,109360.0,109350.0,0.39508]
[1759041359180,2.65361953,109360.0,109350.0,0.39508]
[1759041363288,2.42501953,109360.0,109350.0,0.39508]
[1759041364290,2.65361953,109360.0,109350.0,0.39508]
[1759041365686,2.65349953,109360.0,109350.0,0.39508]
[1759041367295,2.42489953,109360.0,109350.0,0.39508]
[1759041369187,1.59373953,109360.0,109350.0,0.39508]
[1759041369389,2.42485953,109360.0,109350.0,0.39508]
[1759041369893,2.13737726,109360.0,109350.0,0.39508]
[1759041370092,2.42485953,109360.0,109350.0,0.39508]
[1759041371993,2.42485953,109360.0,109350.0,0.03428]
[1759041372193,2.42485953,109360.0,109350.0,0.39508]
[1759041372389,2.65345953,109360.0,109350.0,0.39508]
[1759041374489,2.62058265,109360.0,109350.0,0.39508]
[1759041377999,2.62058265,109360.0,109350.0,0.03428]
[1759041378202,2.62058265,109360.0,109350.0,0.39508]
[1759041378897,0.37893212,109360.0,109350.0,0.78463412]
[1759041379087,0.37893212,109360.0,109350.0,2.14173296]
[1759041379088,0.28753572,109360.0,109350.0,2.14173296]
[1759041379295,0.19389472,109360.0,109350.0,2.14173296]
[1759041379501,1.32312414,109360.0,109350.0,2.14173296]
[1759041379695,1.32272414,109360.0,109350.0,2.14173296]
[1759041379999,1.32312414,109360.0,109350.0,2.14173296]
[1759041380498,1.32312414,109360.0,109350.0,1.84358354]
[1759041380691,1.32312414,109360.0,109350.0,2.14173296]
[1759041381493,1.32312414,109360.0,109350.0,1.84358354]
[1759041381802,1.02497472,109360.0,109350.0,2.14173296]
[1759041383103,1.02497472,109360.0,109350.0,2.15097535]
[1759041385706,1.02497472,109360.0,109350.0,2.14173296]
[1759041388204,1.02497472,109360.0,109350.0,1.2472847]
[1759041388405,1.02497472,109360.0,109350.0,2.14173296]
[1759041390399,1.00213,109360.0,109350.0,2.14173296]
[1759041395211,1.02464174,109360.0,109350.0,2.14173296]
[1759041398411,1.02464437,109360.0,109350.0,2.14173296]
[1759041398911,1.31212664,109360.0,109350.0,2.14173296]
[1759041399413,1.31212664,109360.0,109350.0,1.74173296]
[1759041399906,1.02464437,109360.0,109350.0,1.74173296]
[1759041400212,1.31212664,109360.0,109350.0,1.74173296]
[1759041404517,1.30912664,109360.0,109350.0,1.74173296]
[1759041404718,1.30888664,109360.0,109350.0,1.74173296]
[1759041405217,1.30688664,109360.0,109350.0,1.74173296]
[1759041414526,1.30688664,109360.0,109350.0,1.24463989]
[1759041415030,1.30388664,109360.0,109350.0,1.24463989]
[1759041415324,1.30188664,109360.0,109350.0,1.24463989]
[1759041419526,1.39328304,109360.0,109350.0,1.24463989]
[1759041419730,1.30188664,109360.0,109350.0,1.24463989]
[1759041423526,1.30188664,109360.0,109350.0,1.24763989]
[1759041424331,1.30188664,109360.0,109350.0,1.24463989]
[1759041424529,0.18356437,109360.0,109350.0,2.04199508]
[1759041424729,0.02221,109380.0,109370.0,0.125938]
[1759041425035,0.535176,109390.0,109380.0,0.1259297]
[1759041425036,0.115186,109390.0,109380.0,0.1259297]
[1759041425232,0.96673589,109390.0,109380.0,1.28144008]
[1759041425427,1.48317816,109390.0,109380.0,0.88408489]
[1759041426335,1.48317816,109390.0,109380.0,0.4867297]
[1759041426537,1.88353335,109390.0,109380.0,0.88408489]
[1759041426732,1.89265253,109390.0,109380.0,0.88408489]
[1759041427436,1.89565253,109390.0,109380.0,0.88408489]
[1759041428031,1.96894611,109390.0,109380.0,0.88408489]
[1759041428542,1.96890611,109390.0,109380.0,0.88408489]
[1759041429335,1.96886611,109390.0,109380.0,0.88408489]
[1759041429936,1.68138384,109390.0,109380.0,0.88408489]
[1759041430139,1.96886611,109390.0,109380.0,0.88408489]
[1759041440247,1.74030611,109390.0,109380.0,0.88408489]
[1759041440640,1.34295092,109390.0,109380.0,0.88408489]
[1759041440841,1.74030611,109390.0,109380.0,0.88408489]
[1759041441042,1.34295092,109390.0,109380.0,0.88408489]
[1759041441236,1.96886611,109390.0,109380.0,0.88408489]
[1759041442241,1.74030611,109390.0,109380.0,0.88408489]
[1759041442449,1.96886611,109390.0,109380.0,0.88408489]
[1759041443747,1.74030611,109390.0,109380.0,0.88408489]
[1759041443948,1.96886611,109390.0,109380.0,0.88408489]
[1759041445742,1.74030611,109390.0,109380.0,0.88408489]
[1759041445949,1.96886611,109390.0,109380.0,0.88408489]
[1759041446452,1.96886611,109390.0,109380.0,0.52328489]
[1759041446650,1.96886611,109390.0,109380.0,0.88408489]
[1759041449750,1.04697011,109390.0,109380.0,0.88408489]
[1759041449951,1.87725011,109390.0,109380.0,0.88408489]
[1759041452554,1.04697011,109390.0,109380.0,0.88408489]
[1759041452854,1.87721011,109390.0,109380.0,0.88408489]
[1759041458353,1.96858141,109390.0,109380.0,0.88408489]
[1759041459365,1.96858141,109390.0,109380.0,0.4867297]
[1759041459668,1.96858141,109390.0,109380.0,0.88408489]
[1759041459958,1.68109914,109390.0,109380.0,0.88408489]
[1759041460160,1.96858141,109390.0,109380.0,0.88408489]
[1759041462764,1.87721011,109390.0,109380.0,0.88408489]
[1759041463864,1.25129492,109390.0,109380.0,0.88408489]
[1759041464162,1.87721011,109390.0,109380.0,0.88408489]
[1759041465553,1.87721011,109390.0,109380.0,0.52328489]
[1759041465759,1.87721011,109390.0,109380.0,0.88408489]
[1759041466368,1.87721011,109390.0,109380.0,0.52328489]
[1759041466667,1.87721011,109390.0,109380.0,0.88408489]
[1759041466872,1.04697011,109390.0,109380.0,0.88408489]
[1759041467170,1.87713011,109390.0,109380.0,0.88408489]
[1759041467966,1.47977492,109390.0,109380.0,0.88408489]
[1759041468170,1.04697011,109390.0,109380.0,0.88408489]
[1759041468469,1.87713011,109390.0,109380.0,0.88408489]
[1759041468770,1.47977492,109390.0,109380.0,0.88408489]
[1759041469071,1.04697011,109390.0,109380.0,0.88408489]
[1759041469263,1.87713011,109390.0,109380.0,0.88408489]
[1759041476669,1.77768228,109390.0,109380.0,1.08254442]
[1759041477774,1.54912228,109390.0,109380.0,1.08254442]
[1759041477971,1.77768228,109390.0,109380.0,1.08254442]
[1759041478774,1.77760228,109390.0,109380.0,1.08254442]
[1759041480292,1.7684831,109390.0,109380.0,1.08254442]
[1759041483074,0.64049574,109390.0,109380.0,1.38045178]
[1759041483279,0.35301347,109390.0,109380.0,1.38045178]
[1759041483481,0.02894989,109390.0,109380.0,1.78045178]
[1759041483675,0.02854989,109390.0,109380.0,1.78045178]
[1759041483981,1.7255184,109400.0,109390.0,0.1271013]
[1759041484274,0.13949,109400.0,109390.0,1.78162338]
[1759041484472,0.83004,109420.0,109410.0,0.1270846]
[1759041484681,0.51600227,109420.0,109410.0,2.57244668]
[1759041485180,0.51640227,109420.0,109410.0,2.57244668]
[1759041485876,0.52540227,109420.0,109410.0,2.57244668]
[1759041486682,0.52540227,109420.0,109410.0,2.57240668]
[1759041486873,0.53740227,109420.0,109410.0,2.57240668]
[1759041488180,0.021,109420.0,109410.0,2.14240668]
[1759041488385,0.0214,109420.0,109410.0,2.97236668]
[1759041488785,0.0214,109420.0,109410.0,2.14240668]
[1759041489083,0.0214,109420.0,109410.0,2.97236668]
[1759041490697,0.0214,109420.0,109410.0,2.97232668]
[1759041493396,0.0214,109420.0,109410.0,2.98134853]
[1759041493896,0.0214,109420.0,109410.0,2.14240668]
[1759041494095,0.0214,109420.0,109410.0,2.97224668]
[1759041495998,0.0214,109420.0,109410.0,2.98124755]
[1759041497094,0.0214,109420.0,109410.0,2.97220668]
[1759041497294,0.0184,109420.0,109410.0,2.97220668]
[1759041497795,0.0114,109420.0,109410.0,2.97220668]
[1759041498897,0.29888227,109420.0,109410.0,2.97220668]
[1759041499197,0.29288227,109420.0,109410.0,2.97220668]
[1759041500490,0.0054,109420.0,109410.0,2.97216668]
[1759041500696,0.005,109420.0,109410.0,2.97216668]
[1759041500998,0.0054,109420.0,109410.0,2.97216668]
[1759041502700,0.0054,109420.0,109410.0,2.97212668]
[1759041505899,0.29288227,109420.0,109410.0,2.97212668]
[1759041510505,0.29288227,109420.0,109410.0,2.97208668]
[1759041513609,0.0054,109420.0,109410.0,2.97208668]
[1759041513909,0.29288227,109420.0,109410.0,2.97208668]
[1759041515310,0.52136227,109420.0,109410.0,2.97208668]
[1759041519512,0.52136227,109420.0,109410.0,2.57208668]
[1759041519913,0.23388,109420.0,109410.0,2.57208668]
[1759041520115,0.52136227,109420.0,109410.0,2.57208668]
[1759041520915,0.54372221,109420.0,109410.0,2.57208668]
[1759041523117,0.52136227,109420.0,109410.0,2.57208668]
[1759041525319,0.54373027,109420.0,109410.0,2.57208668]
[1759041528424,0.54373027,109420.0,109410.0,1.85048668]
[1759041528624,0.54373027,109420.0,109410.0,2.57208668]
[1759041531018,0.54173027,109420.0,109410.0,2.57208668]
[1759041531225,0.53873027,109420.0,109410.0,2.57208668]
[1759041532317,0.53873027,109420.0,109410.0,4.07208668]
[1759041532924,0.53873027,109420.0,109410.0,4.07192668]
[1759041533427,0.51636227,109420.0,109410.0,4.07192668]
[1759041533730,0.53874486,109420.0,109410.0,4.07192668]
[1759041534229,0.51636227,109420.0,109410.0,4.07192668]
[1759041534419,0.51636227,109420.0,109410.0,3.24240668]
[1759041534724,0.51636227,109420.0,109410.0,4.07192668]
[1759041535228,0.51636227,109420.0,109410.0,4.13774531]
[1759041536425,0.51636227,109420.0,109410.0,3.41614531]
[1759041536731,0.0004,109420.0,109410.0,4.53774531]
[1759041538533,0.0004,109420.0,109410.0,4.93460633]
[1759041539734,0.0004,109420.0,109410.0,4.8687877]
[1759041540931,0.0004,109420.0,109410.0,4.93460633]
[1759041542335,0.0004,109420.0,109410.0,4.93560633]
[1759041543232,0.0004,109420.0,109410.0,4.93860633]
[1759041546834,0.0004,109420.0,109410.0,4.8727877]
[1759041549033,0.28788227,109420.0,109410.0,4.8727877]
[1759041549938,0.0004,109420.0,109410.0,4.8727877]
[1759041550141,0.28788227,109420.0,109410.0,4.8727877]
[1759041553241,0.28788227,109420.0,109410.0,4.93860633]
[1759041553539,0.28788227,109420.0,109410.0,4.44174527]
[1759041558044,0.28788227,109420.0,109410.0,4.37592664]
[1759041558245,0.28788227,109420.0,109410.0,4.44174527]
[1759041560242,0.37250227,109420.0,109410.0,4.44174527]
[1759041560444,0.37250227,109420.0,109410.0,4.44158527]
[1759041564747,0.33750227,109420.0,109410.0,4.44158527]
[1759041564947,0.32456227,109420.0,109410.0,4.44158527]
[1759041574362,0.32456227,109420.0,109410.0,3.61222527]
[1759041574564,0.32456227,109420.0,109410.0,4.44146527]
[1759041579473,0.32456227,109420.0,109410.0,4.04146527]
[1759041579865,0.08462,109420.0,109410.0,4.04146527]
[1759041580068,0.32456227,109420.0,109410.0,4.04146527]
[1759041585369,0.55304227,109420.0,109410.0,4.04146527]
[1759041590381,0.32456227,109420.0,109410.0,4.04146527]
[1759041590678,0.55304227,109420.0,109410.0,4.04146527]
[1759041593581,0.55304227,109420.0,109410.0,4.04346527]
[1759041594481,0.55304227,109420.0,109410.0,4.04546527]
[1759041600683,0.55304227,109420.0,109410.0,4.14460401]
[1759041602078,0.55304227,109420.0,109410.0,4.14160401]
[1759041602285,0.55304227,109420.0,109410.0,4.14260401]
[1759041603391,0.32456227,109420.0,109410.0,4.13760401]
[1759041603575,0.55304227,109420.0,109410.0,4.13960401]
[1759041604690,0.32456227,109420.0,109410.0,4.13960401]
[1759041604893,0.55304227,109420.0,109410.0,4.13960401]
[1759041609887,0.3131,109420.0,109410.0,4.13960401]
[1759041610089,0.55304227,109420.0,109410.0,4.13960401]
[1759041611984,0.48449919,109420.0,109410.0,4.13960401]
[1759041612186,0.46842227,109420.0,109410.0,4.13960401]
[1759041614991,0.23994227,109420.0,109410.0,4.13960401]
[1759041615186,0.46842227,109420.0,109410.0,4.13960401]
[1759041616185,0.09883483,109460.0,109420.0,0.1259759]
[1759041616392,0.09466631,109460.0,109450.0,1.06937142]
[1759041616584,0.14637943,109460.0,109450.0,1.08199142]
[1759041616785,0.37157943,109460.0,109450.0,0.84204915]
[1759041616987,0.37197943,109460.0,109450.0,0.93337005]
[1759041617287,0.37397943,109460.0,109450.0,0.93337005]
[1759041617893,0.37897943,109460.0,109450.0,0.93337005]
[1759041618495,0.37297943,109460.0,109450.0,0.93337005]
[1759041618692,0.37697943,109460.0,109450.0,0.93337005]
[1759041618893,0.38297943,109460.0,109450.0,0.93337005]
[1759041619393,0.45481643,109460.0,109450.0,0.93337005]
[1759041619594,0.44781643,109460.0,109450.0,0.93337005]
[1759041619789,0.75843803,109460.0,109450.0,0.93337005]
[1759041620282,0.75743803,109460.0,109450.0,0.93337005]
[1759041622386,0.45981777,109460.0,109450.0,0.93337005]
[1759041622591,0.75743803,109460.0,109450.0,0.93337005]
[1759041623087,0.45981777,109460.0,109450.0,0.93337005]
[1759041623289,0.75743803,109460.0,109450.0,0.93337005]
[1759041623893,0.75739936,109460.0,109450.0,0.93337005]
[1759041625994,0.74839802,109460.0,109450.0,0.93337005]
[1759041627200,0.83971052,109460.0,109450.0,0.93337005]
[1759041627498,0.84896873,109460.0,109450.0,0.93337005]
[1759041628390,0.83971052,109460.0,109450.0,0.93337005]
[1759041630596,0.75512052,109460.0,109450.0,0.93337005]
[1759041631902,0.75509418,109460.0,109450.0,0.93337005]
[1759041633897,0.2358,109460.0,109450.0,1.99179031]
[1759041634396,0.2358,109460.0,109450.0,2.82039031]
[1759041634992,0.2298,109460.0,109450.0,1.99179031]
[1759041635186,0.2308,109460.0,109450.0,2.82039031]
[1759041636093,0.2308,109460.0,109450.0,1.99179031]
[1759041636302,0.61973276,109460.0,109450.0,1.20284915]
[1759041636503,0.52842026,109460.0,109450.0,2.12273005]
[1759041636699,0.52842026,109460.0,109450.0,1.29417005]
[1759041636998,0.52842026,109460.0,109450.0,2.12273005]
[1759041638795,0.2308,109460.0,109450.0,2.42035031]
[1759041639709,0.2304,109460.0,109450.0,2.42035031]
[1759041639896,0.2308,109460.0,109450.0,2.42035031]
[1759041640400,0.2298,109460.0,109450.0,2.42235031]
[1759041640702,0.2288,109460.0,109450.0,2.42335031]
[1759041644596,0.2288,109460.0,109450.0,2.82335031]
[1759041644797,0.2288,109460.0,109450.0,2.88916894]
[1759041645197,0.2284,109460.0,109450.0,2.88916894]
[1759041645404,0.2288,109460.0,109450.0,2.88916894]
[1759041645598,0.2284,109460.0,109450.0,2.88916894]
[1759041645804,0.2288,109460.0,109450.0,2.88916894]
[1759041645998,0.0004,109460.0,109450.0,2.88916894]
[1759041646399,0.10795,109480.0,109470.0,0.1263342]
[1759041646604,0.10795,109480.0,109470.0,2.20875498]
[1759041646809,0.25093,109480.0,109470.0,2.20875498]
[1759041646997,0.25133,109480.0,109470.0,2.20875498]
[1759041647506,0.25533,109480.0,109470.0,2.56955498]
[1759041647708,0.25493,109480.0,109470.0,1.6766942]
[1759041647912,0.25833,109480.0,109470.0,2.56955498]
[1759041649307,0.25833,109480.0,109470.0,0.8479342]
[1759041649507,0.25833,109480.0,109470.0,1.6792542]
[1759041649708,0.25833,109480.0,109470.0,2.27449472]
[1759041649909,0.25833,109480.0,109470.0,0.8479342]
[1759041650213,0.25833,109480.0,109470.0,2.57267498]
[1759041652606,0.25833,109480.0,109470.0,1.74079498]
[1759041652910,0.25833,109480.0,109470.0,2.57255498]
[1759041653414,0.25833,109480.0,109470.0,2.57251498]
[1759041653617,0.55595026,109480.0,109470.0,2.27513472]
[1759041653819,0.56873026,109480.0,109470.0,2.27513472]
[1759041654003,0.56873026,109480.0,109470.0,1.44317472]
[1759041654509,0.56873026,109480.0,109470.0,2.27509472]
[1759041654815,0.56873026,109480.0,109470.0,1.6798542]
[1759041655015,0.56873026,109480.0,109470.0,2.27509472]
[1759041655216,0.56873026,109480.0,109470.0,2.57271498]
[1759041655418,0.27111,109480.0,109470.0,2.57271498]
[1759041655612,0.56873026,109480.0,109470.0,2.57271498]
[1759041656314,0.27111,109480.0,109470.0,1.74079498]
[1759041656513,0.56873026,109480.0,109470.0,2.57267498]
[1759041656916,0.55595026,109480.0,109470.0,2.57267498]
[1759041657212,0.25833,109480.0,109470.0,2.57267498]
[1759041660210,0.23576,109480.0,109470.0,2.57267498]
[1759041660620,0.23576,109480.0,109470.0,2.47277332]
[1759041661115,0.25793847,109480.0,109470.0,2.47277332]
[1759041662419,0.25793847,109480.0,109470.0,1.24441376]
[1759041662617,0.25793847,109480.0,109470.0,2.07621376]
[1759041665616,0.25793847,109480.0,109470.0,2.47269332]
[1759041666924,0.23576,109480.0,109470.0,2.47269332]
[1759041667221,0.23576,109480.0,109470.0,2.48176302]
[1759041667419,0.23576,109480.0,109470.0,3.34406121]
[1759041667420,0.0074,109480.0,109470.0,3.34406121]
[1759041668623,0.0074,109480.0,109470.0,3.41691415]
[1759041669122,0.08537,109490.0,109480.0,0.0912959]
[1759041669430,0.08537,109490.0,109480.0,2.50991458]
[1759041669627,0.31373,109490.0,109480.0,2.50991458]
[1759041670228,0.32073,109490.0,109480.0,2.50991458]
[1759041671022,0.32473,109490.0,109480.0,2.50991458]
[1759041671416,0.32393,109490.0,109480.0,1.67791458]
[1759041671616,0.32393,109490.0,109480.0,2.50999458]
[1759041673023,0.32393,109490.0,109480.0,1.67791458]
[1759041673225,0.32393,109490.0,109480.0,2.50995458]
[1759041674927,0.09557,109490.0,109480.0,2.50995458]
[1759041675122,0.32393,109490.0,109480.0,2.50995458]
[1759041675721,0.32393,109490.0,109480.0,1.67791458]
[1759041675922,0.09557,109490.0,109480.0,2.90975458]
[1759041676225,0.09557,109490.0,109480.0,2.07791458]
[1759041676426,0.09557,109490.0,109480.0,2.90975458]
[1759041676620,0.09557,109490.0,109480.0,2.07791458]
[1759041676821,0.09557,109490.0,109480.0,2.90991458]
[1759041677725,0.09157,109490.0,109480.0,2.91191458]
[1759041678125,0.08457,109490.0,109480.0,2.91491458]
[1759041678528,0.08457,109490.0,109480.0,2.08291458]
[1759041678724,0.08457,109490.0,109480.0,2.91491458]
[1759041679727,0.08457,109490.0,109480.0,2.08291458]
[1759041679928,0.02218,109510.0,109500.0,0.1272925]
[1759041680128,0.27267549,109510.0,109500.0,2.11301162]
[1759041681129,0.27467549,109510.0,109500.0,2.11301162]
[1759041681530,0.35922549,109510.0,109500.0,2.11301162]
[1759041681723,0.36122549,109510.0,109500.0,2.11301162]
[1759041682528,0.36122549,109510.0,109500.0,1.28105162]
[1759041682729,0.36122549,109510.0,109500.0,2.11289162]
[1759041685432,0.36122549,109510.0,109500.0,1.3199325]
[1759041685635,0.36122549,109510.0,109500.0,2.11289162]
[1759041685827,0.36122549,109510.0,109500.0,1.3199325]
[1759041686132,0.36122549,109510.0,109500.0,2.11289162]
[1759041686634,0.36122549,109510.0,109500.0,1.28105162]
[1759041687130,0.36122549,109510.0,109500.0,2.11273162]
[1759041687532,0.45249629,109510.0,109500.0,2.11273162]
[1759041687722,0.45249629,109510.0,109500.0,2.11289162]
[1759041687924,0.45249629,109510.0,109500.0,1.28105162]
[1759041688335,0.45249629,109510.0,109500.0,2.11293162]
[1759041689134,0.45249629,109510.0,109500.0,1.28105162]
[1759041689331,0.45249629,109510.0,109500.0,2.11293162]
[1759041690730,0.45249629,109510.0,109500.0,1.28105162]
[1759041690935,0.45249629,109510.0,109500.0,2.11309162]
[1759041691837,0.45249629,109510.0,109500.0,1.28105162]
[1759041692135,0.45249629,109510.0,109500.0,2.11309162]
[1759041692937,0.45249629,109510.0,109500.0,1.28105162]
[1759041693138,0.45249629,109510.0,109500.0,2.11305162]
[1759041699746,0.22417629,109510.0,109500.0,2.11305162]
[1759041699937,0.45249629,109510.0,109500.0,2.11305162]
[1759041700137,0.46630629,109510.0,109500.0,2.11305162]
[1759041702245,0.23798629,109510.0,109500.0,2.11305162]